bitfinex/quotes_ETHUSD_20220119
["timestamp","ask_amount","ask_price","bid_price","bid_amount"]
[1642611732799,0.0022737,3126.0,3125.3,0.80165857]
[1642611733298,1.29598112,3125.9,3125.3,0.80165857]
[1642611733698,0.00113685,3125.8,3125.3,0.80165857]
[1642611734306,0.00113685,3125.8,3125.3,3.72531457]
[1642611735149,0.00113685,3125.8,3125.3,0.80165857]
[1642611736751,0.00113685,3125.8,3125.3,3.79120623]
[1642611736954,0.00113685,3125.8,3125.4,0.79999]
[1642611737657,0.00113685,3125.8,3125.5,3.1695678]
[1642611737857,0.00113685,3125.8,3125.6,3.9351]
[1642611738057,0.00113685,3125.8,3125.7,8.98297024]
[1642611738257,0.00113685,3125.8,3125.7,5.8]
[1642611738455,0.00113685,3125.8,3125.7,8.8255669]
[1642611738702,0.00113685,3125.8,3125.7,9.9578576]
[1642611738901,0.007,3127.4,3125.9,0.799804]
[1642611739102,0.007,3127.4,3126.5,0.01230082]
[1642611739302,0.007,3127.4,3126.5,0.77110082]
[1642611740002,1.30629311,3127.4,3126.5,2.61312082]
[1642611740202,1.30629311,3127.4,3126.6,0.7996214]
[1642611740502,1.30629311,3127.4,3126.2,1.0]
[1642611740503,0.79968,3127.2,3126.2,0.1279]
[1642611740701,0.79968,3127.2,3126.1,0.79981]
[1642611740900,0.0073895,3127.1,3126.1,0.79981]
[1642611741101,0.0073895,3127.1,3125.8,10.61831]
[1642611741102,0.0073895,3127.1,3125.8,8.2194]
[1642611741402,2.7748226,3125.9,3125.8,8.2194]
[1642611741602,2.7748226,3125.9,3125.8,5.8]
[1642611741801,1.007,3127.4,3125.8,5.8]
[1642611741802,0.00852635,3127.3,3125.8,5.8]
[1642611742000,0.00852635,3127.3,3125.9,3.13972932]
[1642611742202,0.00795793,3127.2,3125.9,4.73923932]
[1642611742645,2.40663,3127.4,3125.9,4.73923932]
[1642611742646,0.00852635,3127.3,3125.9,4.73923932]
[1642611742847,1.24135579,3126.9,3125.9,4.73923932]
[1642611743047,0.79982,3126.8,3126.0,0.7997769]
[1642611743247,0.79982,3126.8,3126.1,3.81379675]
[1642611743248,0.00568423,3126.8,3126.1,3.81379675]
[1642611743448,2.40663,3127.4,3126.1,3.81379675]
[1642611743449,0.00511581,3126.7,3126.3,0.01249092]
[1642611743849,0.00454739,3126.6,3126.3,0.01249092]
[1642611744250,0.00397896,3126.5,3126.3,0.01249092]
[1642611744652,0.00341054,3126.4,3126.3,2.41134422]
[1642611745252,0.00341054,3126.4,3126.3,0.01249092]
[1642611745451,0.00341054,3126.4,3126.3,5.97374092]
[1642611746328,0.00341054,3126.4,3126.3,5.81249092]
[1642611746723,0.00341054,3126.4,3126.3,0.01249092]
[1642611747023,0.00341054,3126.4,3126.2,3.7509]
[1642611747226,1.27652401,3126.3,3126.0,0.1279]
[1642611747427,1.27936613,3126.3,3126.0,0.1279]
[1642611747624,1.27936613,3126.3,3125.7,0.79991]
[1642611747625,0.80219369,3126.2,3125.7,0.79991]
[1642611747825,1.18419075,3125.8,3125.7,0.79991]
[1642611748023,0.00170527,3126.1,3125.7,0.79991]
[1642611748424,1.27652401,3126.3,3125.7,0.79991]
[1642611748425,0.00113685,3126.0,3125.7,0.79991]
[1642611748824,0.00227369,3126.2,3125.7,0.79991]
[1642611749126,1.11889552,3125.9,3125.7,0.79991]
[1642611749324,0.88647768,3125.8,3125.7,0.79991]
[1642611749524,0.88647768,3125.8,3125.6,0.13819997]
[1642611749724,0.88647768,3125.8,3125.5,0.13819997]
[1642611750152,2.42460263,3125.7,3125.6,0.00113685]
[1642611750353,2.42460263,3125.7,3125.6,2.65113685]
[1642611750953,0.88647768,3125.7,3125.6,5.80787997]
[1642611751153,0.88647768,3125.7,3125.6,5.82018166]
[1642611751353,0.88647768,3125.7,3125.6,5.8137535]
[1642611751555,0.88647768,3125.7,3125.6,8.82807874]
[1642611751955,0.00227369,3126.2,3125.8,0.7998144]
[1642611752157,0.00227369,3126.2,3125.8,4.67306462]
[1642611752356,0.007,3127.4,3125.8,4.67306462]
[1642611752357,0.00170527,3126.1,3125.8,4.67306462]
[1642611752759,0.007,3127.4,3126.0,5.8]
[1642611752960,0.007,3127.4,3126.3,0.01210419]
[1642611753158,0.80818635,3127.3,3126.4,0.79966]
[1642611753559,0.00795793,3127.2,3126.6,0.79965]
[1642611753806,0.00795793,3127.2,3126.6,1.5992665]
[1642611754006,0.0073895,3127.1,3126.6,1.5992665]
[1642611754407,0.00682108,3127.0,3126.6,0.79965]
[1642611754809,0.00625266,3126.9,3126.7,1.5989802]
[1642611755007,0.00625266,3126.9,3126.8,5.96125]
[1642611755212,0.007,3127.4,3126.9,0.79946]
[1642611755408,0.007,3127.4,3127.0,1.20294844]
[1642611755609,0.00852635,3127.3,3127.0,1.20294844]
[1642611755811,0.00852635,3127.3,3126.9,0.79946]
[1642611756011,0.00795793,3127.2,3126.9,0.79946]
[1642611756209,0.00795793,3127.2,3127.0,0.7994377]
[1642611756408,0.007,3127.4,3127.0,0.7994377]
[1642611756409,0.0073895,3127.1,3127.0,0.7994377]
[1642611757010,0.0073895,3127.1,3127.0,9.64461172]
[1642611757462,0.79945,3128.1,3127.1,5.8]
[1642611757653,3.19789,3129.6,3127.1,5.8]
[1642611757654,1.59881,3128.6,3127.7,0.7993172]
[1642611758053,1.59881,3128.6,3127.7,3.79066531]
[1642611758253,3.19789,3129.6,3127.7,3.79066531]
[1642611758455,1.55791205,3128.4,3127.7,3.00340423]
[1642611758958,1.55791205,3128.4,3127.5,3.6996]
[1642611759359,1.13748007,3128.1,3127.5,3.6996]
[1642611759759,1.42789006,3127.7,3127.5,3.6996]
[1642611759961,0.00511581,3128.0,3127.5,0.01263126]
[1642611760162,0.00284212,3127.6,3127.5,9.48383126]
[1642611760365,3.19788,3129.6,3127.5,9.48383126]
[1642611760366,0.00454739,3127.9,3127.5,9.48383126]
[1642611760562,0.00284212,3127.6,3127.5,9.48383126]
[1642611760763,0.00397897,3127.8,3127.5,9.48383126]
[1642611760962,0.00284212,3127.6,3127.5,9.48383126]
[1642611761203,0.00341054,3127.7,3127.5,5.81263126]
[1642611761404,1.30896389,3128.5,3127.5,6.61191126]
[1642611761405,0.00284212,3127.6,3127.5,6.61191126]
[1642611761607,0.00284212,3127.6,3127.5,6.59928]
[1642611761804,1.80933,3130.0,3127.6,5.8]
[1642611761805,1.01,3130.0,3127.6,5.8]
[1642611762006,0.01,3130.0,3128.2,0.01283074]
[1642611762207,0.00174739,3128.4,3128.2,0.01283074]
[1642611762606,0.00117896,3128.3,3128.1,0.2726]
[1642611762807,1.09742154,3128.3,3128.1,0.2726]
[1642611763009,1.09742154,3128.3,3127.7,0.16348158]
[1642611763010,1.09742154,3128.3,3127.7,0.00223158]
[1642611763810,1.09742154,3128.3,3127.1,0.13819997]
[1642611763811,1.25311245,3127.8,3127.4,0.00393685]
[1642611764011,1.25311245,3127.8,3127.1,0.13819997]
[1642611764012,0.00117896,3128.3,3127.2,0.00507369]
[1642611764611,0.00117896,3128.3,3127.4,0.01246739]
[1642611765078,1.33797409,3127.8,3127.5,0.00336842]
[1642611765688,1.33797409,3127.8,3127.3,0.00450527]
[1642611767071,0.05197072,3127.7,3127.3,0.00450527]
[1642611767268,3.25,3127.6,3126.6,0.1278]
[1642611767471,0.0522451,3127.5,3126.7,0.00791581]
[1642611767670,1.0,3128.8,3127.4,5.4]
[1642611767869,1.0,3128.8,3127.3,5.0]
[1642611767870,3.19884,3128.6,3127.3,5.0]
[1642611768069,0.00113684,3127.7,3127.3,5.0]
[1642611768469,5.9444,3129.3,3127.3,5.0]
[1642611768470,0.00625266,3128.6,3127.3,5.0]
[1642611768903,1.0,3129.2,3127.3,5.0]
[1642611768904,0.00568423,3128.5,3127.3,5.0]
[1642611769103,1.25952075,3127.8,3127.3,5.0]
[1642611769305,0.79958,3127.7,3127.3,5.0]
[1642611769506,1.25952075,3127.8,3127.3,5.0]
[1642611769703,1.58707,3128.1,3127.3,5.0]
[1642611769903,0.00511581,3128.4,3127.3,5.0]
[1642611770107,0.00284211,3128.0,3127.4,7.06845094]
[1642611770305,5.9444,3129.3,3127.4,7.86782244]
[1642611770306,0.00454738,3128.3,3127.4,7.86782244]
[1642611770506,0.00227369,3127.9,3127.4,7.86782244]
[1642611770703,0.00397896,3128.2,3127.4,7.86782244]
[1642611771006,1.59886,3128.5,3127.4,7.86782244]
[1642611771007,0.00341054,3128.1,3127.4,7.86782244]
[1642611771204,0.80285054,3128.1,3127.4,3.9519]
[1642611771409,0.00284211,3128.0,3127.4,3.9519]
[1642611771606,1.59918,3127.9,3127.4,3.9519]
[1642611771805,1.60145369,3127.9,3127.3,5.0]
[1642611772005,1.13240718,3127.5,3127.3,5.0]
[1642611772206,0.79962,3127.4,3127.3,5.0]
[1642611772454,0.00170527,3127.8,3127.3,5.0]
[1642611772654,0.00170527,3127.8,3127.3,5.00113685]
[1642611773455,0.79959,3127.6,3127.3,5.00113685]
[1642611774262,1.42992217,3127.5,3127.3,5.00113685]
[1642611774462,1.18306548,3127.5,3127.3,5.00113685]
[1642611775963,1.10658699,3127.4,3127.3,5.00113685]
[1642611776218,3.45658699,3127.4,3127.3,1.19629163]
[1642611776411,3.45658699,3127.4,3125.3,2.39889]
[1642611776412,3.45658699,3127.4,3125.9,0.1279]
[1642611776609,0.79994,3127.0,3125.9,0.1279]
[1642611776808,0.04292014,3126.9,3126.0,0.0073895]
[1642611777208,2.34782677,3126.1,3126.0,0.0073895]
[1642611777908,2.34782677,3126.1,3125.6,0.0096632]
[1642611778714,3.14786677,3126.1,3125.6,0.0096632]
[1642611779113,3.14786677,3126.1,3125.3,0.01136847]
[1642611779714,1.96081257,3126.1,3125.3,0.01136847]
[1642611780353,1.15356839,3125.6,3125.3,0.01136847]
[1642611780554,1.15356839,3125.6,3124.6,0.27639994]
[1642611780555,0.80014,3125.5,3123.9,0.1279]
[1642611780755,0.80014,3125.5,3123.8,6.5134988]
[1642611780756,0.80127685,3125.5,3124.2,0.01203988]
[1642611780955,0.80127685,3125.5,3124.3,3.52316297]
[1642611781155,0.80127685,3125.5,3124.3,0.80023]
[1642611781360,0.80127685,3125.5,3124.4,0.00511581]
[1642611781555,0.00113685,3125.5,3124.5,3.52297286]
[1642611781756,0.00113685,3125.5,3124.6,2.72281306]
[1642611782057,0.00113685,3125.5,3124.8,0.79997]
[1642611782256,3.685e-05,3125.5,3125.0,0.01235154]
[1642611782459,3.685e-05,3125.5,3125.1,2.88406306]
[1642611782656,3.685e-05,3125.5,3125.2,6.7236971]
[1642611782857,0.79979,3126.9,3125.8,1.5994221]
[1642611783059,0.79979,3126.9,3126.1,0.79971]
[1642611783257,0.0073895,3126.8,3126.2,3.2413002]
[1642611783456,0.0073895,3126.8,3126.2,3.8595283]
[1642611783706,0.00682108,3126.7,3126.3,1.97314932]
[1642611783914,0.00682108,3126.7,3126.4,0.79969]
[1642611784110,1.17727578,3127.5,3126.2,3.8595283]
[1642611784111,0.00625266,3126.6,3126.2,3.8469]
[1642611784310,1.44802517,3126.6,3126.2,3.8469]
[1642611784510,0.00568423,3126.5,3125.8,0.13819997]
[1642611784910,0.00511581,3126.4,3125.8,0.13819997]
[1642611785310,0.00454739,3126.3,3125.8,0.13819997]
[1642611785711,1.44177251,3126.6,3125.8,0.93806997]
[1642611785712,0.00397896,3126.2,3125.8,0.93806997]
[1642611785911,0.00397896,3126.2,3125.9,0.7998133]
[1642611786113,1.22792519,3127.4,3126.0,7.04828286]
[1642611786411,0.00227369,3126.5,3126.0,7.04828286]
[1642611786612,0.00227369,3126.5,3126.2,1.5993]
[1642611786813,5.27e-06,3126.4,3126.3,8.80088404]
[1642611787014,2.50519638,3128.8,3126.9,0.79945]
[1642611787015,0.79947,3128.1,3126.9,0.79945]
[1642611787214,0.00910004,3128.0,3127.0,3.00088404]
[1642611787459,0.00910004,3128.0,3127.1,0.1278]
[1642611787654,0.00852635,3127.9,3127.3,0.79944]
[1642611788054,1.30027698,3128.2,3127.5,1.5985915]
[1642611788055,0.00795793,3127.8,3127.5,1.5985915]
[1642611788255,0.00795793,3127.8,3127.5,1.8400915]
[1642611788455,0.0073895,3127.7,3127.5,1.8400915]
[1642611788656,1.59851,3129.2,3127.7,5.8]
[1642611788863,3.00088404,3129.5,3127.7,6.8044]
[1642611789060,0.0022737,3128.1,3127.7,8.39379947]
[1642611789265,0.0022737,3128.1,3127.8,0.9269517]
[1642611789462,3.00088404,3129.5,3127.9,5.8]
[1642611789661,1.11519958,3129.1,3128.3,0.7992]
[1642611789863,1.11519958,3129.1,3128.5,0.79918]
[1642611790061,1.47248607,3128.9,3128.5,0.79918]
[1642611790261,1.47248607,3128.9,3128.1,3.1965032]
[1642611790461,0.00397896,3128.8,3128.1,3.1965032]
[1642611790861,0.00341054,3128.7,3128.3,0.7991545]
[1642611791064,0.00341054,3128.7,3128.4,0.79913]
[1642611791310,0.00284212,3128.6,3128.4,1.83803]
[1642611791712,0.00227369,3128.5,3128.4,1.83803]
[1642611792113,0.01,3130.0,3128.5,5.93819997]
[1642611792312,0.01,3130.0,3128.7,1.59808]
[1642611792512,0.01,3130.0,3129.8,2.0]
[1642611792913,0.01,3130.0,3128.8,2.2985]
[1642611793113,1.29837623,3129.9,3128.3,0.01297857]
[1642611793313,1.29837623,3129.9,3128.1,0.1278]
[1642611793314,0.05675794,3129.5,3128.1,0.1278]
[1642611793513,18.87,3129.4,3128.1,0.1278]
[1642611793713,18.87,3129.4,3128.2,0.00170527]
[1642611793714,0.04853745,3129.2,3128.2,0.00170527]
[1642611793923,3.00088404,3129.3,3128.4,5.8]
[1642611793924,2.39842,3129.3,3128.4,5.8]
[1642611794221,11.62660784,3131.2,3128.4,5.8]
[1642611794222,0.80903,3130.0,3129.1,0.01252771]
[1642611794428,1.6051,3130.2,3129.9,4.6]
[1642611794429,0.007,3130.2,3129.9,4.6]
[1642611794620,0.007,3130.2,3129.9,5.5382]
[1642611794980,0.007,3130.2,3129.9,6.34926961]
[1642611795368,2.39659,3131.6,3130.0,5.8]
[1642611795566,2.39659,3131.6,3130.8,1.15956614]
[1642611795768,0.01250532,3131.5,3130.8,2.67653614]
[1642611796167,0.01468569,3131.8,3130.8,2.67653614]
[1642611796168,0.01193689,3131.4,3130.8,1.61697]
[1642611796568,0.79866,3131.5,3130.8,0.8184]
[1642611796569,0.01136847,3131.3,3130.8,0.8184]
[1642611796770,0.01136847,3131.3,3130.3,0.13819997]
[1642611796969,0.01080005,3131.2,3130.3,0.13819997]
[1642611797169,1.44402986,3130.8,3130.3,0.13819997]
[1642611797371,3.162e-05,3131.1,3130.4,1.380279]
[1642611797573,2.50213766,3131.9,3130.6,5.8]
[1642611797771,0.46792464,3133.9,3131.0,1.59685]
[1642611797973,1.0,3134.4,3131.1,7.97760786]
[1642611797974,0.16678175,3133.5,3131.1,7.97760786]
[1642611798174,0.16678175,3133.5,3131.6,2.3944356]
[1642611798375,0.00742113,3133.8,3132.7,1.09736553]
[1642611798577,1.39970537,3133.8,3132.8,0.03602679]
[1642611798815,1.39970537,3133.8,3132.8,0.00568424]
[1642611798816,4.09970537,3133.8,3132.8,0.00568424]
[1642611799015,1.39970537,3133.8,3132.9,0.00511582]
[1642611799215,1.39970537,3133.8,3132.5,0.13819997]
[1642611799216,1.39970537,3133.8,3132.8,0.00568424]
[1642611799419,0.79834,3134.4,3132.7,3.55]
[1642611799622,0.0033576,3135.0,3132.8,3.13908401]
[1642611799814,0.00625265,3134.9,3132.8,0.14388421]
[1642611800016,0.00625265,3134.9,3132.9,0.00511582]
[1642611800215,0.00568423,3134.8,3132.9,0.82341582]
[1642611800416,1.22982013,3133.4,3132.9,0.82341582]
[1642611800614,1.22982013,3133.4,3133.0,0.00454739]
[1642611801217,1.22982013,3133.4,3132.9,0.00511582]
[1642611801614,1.22982013,3133.4,3131.7,2.3637]
[1642611801615,4.15,3133.2,3131.7,2.3637]
[1642611801815,4.15,3133.2,3132.6,0.00170527]
[1642611801816,3.00848072,3133.1,3132.6,0.00170527]
[1642611802016,4.30961757,3133.1,3132.6,0.00170527]
[1642611802218,5.8,3133.0,3131.3,0.13819997]
[1642611802456,3.01678878,3132.9,3131.4,0.00682108]
[1642611802658,1.33826451,3132.8,3131.4,0.00682108]
[1642611802861,1.33150684,3131.5,3131.0,0.00909477]
[1642611803056,2.69413663,3131.5,3131.0,0.00909477]
[1642611803254,2.69413663,3131.5,3130.5,0.01193689]
[1642611803455,2.69413663,3131.5,3130.6,0.79867]
[1642611803658,2.69413663,3131.5,3130.5,0.01193689]
[1642611803858,2.69413663,3131.5,3130.7,0.01080004]
[1642611804059,2.69413663,3131.5,3130.5,0.01193689]
[1642611804060,1.39293113,3131.0,3130.5,0.01193689]
[1642611804658,1.33150684,3131.5,3130.5,0.01193689]
[1642611805060,1.33150684,3131.5,3130.5,0.17186689]
[1642611805560,1.33150684,3131.5,3130.6,0.01136847]
[1642611805958,1.39410404,3130.9,3130.6,0.01136847]
[1642611806211,0.79874,3131.6,3131.0,3.0]
[1642611806212,4e-05,3131.6,3131.0,3.0]
[1642611806404,4e-05,3131.6,3131.5,5.81240082]
[1642611806804,4e-05,3131.6,3131.5,5.81865347]
[1642611807003,4e-05,3131.6,3131.5,5.80625265]
[1642611809709,4e-05,3131.6,3131.5,8.82830891]
[1642611809958,4e-05,3131.6,3131.5,5.81844059]
[1642611810357,4e-05,3131.6,3131.5,0.01844059]
[1642611810556,4e-05,3131.6,3131.5,4.16844059]
[1642611810757,4e-05,3131.6,3131.5,0.00625265]
[1642611811157,2.45875829,3131.6,3131.1,0.00852635]
[1642611811757,3.25750829,3131.6,3131.0,0.00909477]
[1642611813909,3.25750829,3131.6,3130.9,2.41690713]
[1642611813910,5.85021921,3131.4,3130.9,2.41690713]
[1642611814108,0.79901,3131.0,3130.1,0.27639994]
[1642611814311,2.55475507,3130.8,3129.6,3.72713934]
[1642611814508,2.55475507,3130.8,3129.6,0.01263934]
[1642611814509,1.16310805,3129.8,3129.6,0.01263934]
[1642611814909,1.16310805,3129.8,3129.1,0.26589997]
[1642611815109,1.16310805,3129.8,3129.1,0.13819997]
[1642611815306,0.79905,3130.4,3129.7,0.01261201]
[1642611815509,4.00477723,3131.4,3129.7,0.01261201]
[1642611815709,0.00227369,3131.4,3129.8,0.00682108]
[1642611815908,3.39885527,3131.3,3129.8,0.00682108]
[1642611816108,1.0,3131.2,3129.8,0.00682108]
[1642611816409,1.14276883,3129.9,3129.8,0.00682108]
[1642611816609,1.30825042,3129.9,3129.8,2.70682108]
[1642611816807,0.00113685,3131.2,3129.8,2.70682108]
[1642611817008,0.00113685,3131.2,3129.9,3.0047542]
[1642611817215,0.00113685,3131.2,3129.9,4.15166679]
[1642611817458,0.00113685,3131.2,3130.6,0.01239385]
[1642611817661,1.2376192,3131.0,3130.7,0.0105602]
[1642611817861,1.1837111,3130.9,3130.7,0.00170527]
[1642611818063,1.1837111,3130.9,3130.8,0.00113685]
[1642611818263,1.1837111,3130.9,3129.9,5.3221542]
[1642611818264,1.1837111,3130.9,3130.7,0.00170527]
[1642611818765,1.1837111,3130.9,3130.6,0.79864]
[1642611819162,1.1837111,3130.9,3130.7,0.00170527]
[1642611819968,1.1837111,3130.9,3130.0,0.00568424]
[1642611819969,3.48613293,3130.8,3130.0,0.00568424]
[1642611820175,3.48613293,3130.8,3129.8,0.00682108]
[1642611820365,3.48613293,3130.8,3129.4,0.00909478]
[1642611820366,0.03143195,3130.7,3129.4,0.00909478]
[1642611820564,3.48613293,3130.8,3129.4,2.40909478]
[1642611820565,1.30553945,3129.5,3129.4,2.40909478]
[1642611820767,1.30553945,3129.5,3129.4,0.00909478]
[1642611821624,1.30553945,3129.5,3128.5,0.01421059]
[1642611821825,1.14761959,3128.6,3128.5,0.01421059]
[1642611822124,1.59858,3129.6,3129.1,1.79087087]
[1642611822327,1.4322883,3129.5,3129.1,1.79087087]
[1642611823126,1.16363992,3129.4,3129.1,1.79087087]
[1642611824731,2.2315183,3129.5,3129.1,1.79087087]
[1642611825762,1.3262482,3129.4,3129.1,1.79087087]
[1642611825963,1.3262482,3129.4,3128.6,2.5296045]
[1642611826161,0.79941,3129.2,3128.6,2.5296045]
[1642611826373,0.79941,3129.2,3128.7,0.01307374]
[1642611826761,1.44218259,3128.8,3128.7,0.01307374]
[1642611826961,1.10329743,3128.8,3128.7,0.01307374]
[1642611827663,1.10329743,3128.8,3128.6,2.5296045]
[1642611827664,1.10329743,3128.8,3128.6,0.84137824]
[1642611827865,1.10329743,3128.8,3127.6,5.53339]
[1642611828062,1.10329743,3128.8,3127.6,1.59899]
[1642611828262,1.10329743,3128.8,3127.5,0.01290377]
[1642611828263,0.79953,3128.5,3127.7,0.00568424]
[1642611828463,1.35597277,3127.8,3127.7,0.00568424]
[1642611828708,1.35597277,3127.8,3127.6,0.80582266]
[1642611829213,1.35597277,3127.8,3127.6,0.00625266]
[1642611829613,1.35597277,3127.8,3127.6,0.79957]
[1642611830211,3.00033514,3129.0,3127.6,0.79957]
[1642611830418,0.79957,3128.3,3127.6,0.79957]
[1642611830611,3.00033514,3129.4,3127.6,0.79957]
[1642611830612,0.00113685,3128.9,3127.6,0.79957]
[1642611830811,1.0,3129.2,3127.7,0.79939]
[1642611830812,0.00284212,3129.2,3127.7,0.79939]
[1642611831012,0.00284212,3129.2,3128.1,0.79939]
[1642611831212,1.33722347,3128.2,3127.8,0.00511581]
[1642611831417,1.33722347,3128.2,3127.3,2.92134997]
[1642611831418,1.33722347,3128.2,3127.3,1.73704997]
[1642611831611,1.59909,3128.5,3127.6,1.59896]
[1642611832016,1.59909,3128.5,3127.7,0.00568424]
[1642611832459,1.19655662,3127.8,3127.7,0.00568424]
[1642611833156,1.19655662,3127.8,3127.0,0.0096632]
[1642611833758,1.09580971,3127.1,3126.7,0.01136847]
[1642611834756,1.09580971,3127.1,3126.7,0.81109847]
[1642611835159,1.09580971,3127.1,3126.6,1.59948]
[1642611835160,0.7998,3127.1,3126.8,0.01080005]
[1642611835660,1.5996,3127.4,3126.9,0.79973]
[1642611836057,1.5996,3127.4,3127.0,0.0096632]
[1642611836305,1.49255302,3127.1,3127.0,0.0096632]
[1642611836505,2.29236302,3127.1,3127.0,0.0096632]
[1642611836707,3.30066302,3127.1,3127.0,0.0096632]
[1642611836905,3.30066302,3127.1,3126.7,0.01136847]
[1642611836906,1.27225668,3127.0,3126.7,0.01136847]
[1642611837307,1.27225668,3127.0,3126.1,0.01477901]
[1642611837505,2.11275405,3126.4,3126.1,0.01477901]
[1642611837706,1.27225668,3127.0,3126.6,2.24109601]
[1642611837707,1.09814452,3126.8,3126.6,2.24109601]
[1642611838108,1.09814452,3126.8,3126.7,0.01136847]
[1642611838413,3.75,3126.7,3126.6,2.24109601]
[1642611839012,4.95,3126.6,3125.7,3.6137]
[1642611839212,4.95,3126.6,3125.5,0.0008]
[1642611839213,1.6003,3126.5,3125.5,0.0008]
[1642611839413,1.35260445,3125.9,3125.8,0.00511581]
[1642611839715,1.35260445,3125.9,3125.5,0.0008]
[1642611839961,1.35260445,3125.9,3125.6,0.00113685]
[1642611840156,0.80024,3125.9,3125.6,0.00113685]
[1642611840357,1.09814452,3126.8,3125.6,0.00113685]
[1642611840555,3.20083,3127.1,3125.5,1.3590494]
[1642611840556,1.0,3127.0,3125.5,1.3590494]
[1642611840756,0.00625266,3126.7,3125.5,1.3590494]
[1642611840959,1.0,3127.0,3125.5,1.3590494]
[1642611840960,0.00738951,3126.9,3125.5,1.3590494]
[1642611841257,1.21749007,3126.8,3125.7,0.80006]
[1642611841455,1.60006,3126.5,3125.7,0.80006]
[1642611841655,1.50908153,3126.3,3125.7,0.80006]
[1642611841858,0.80007,3126.2,3125.7,0.80006]
[1642611842057,0.80348054,3126.2,3125.7,0.80006]
[1642611842261,1.50908153,3126.3,3125.5,0.00043685]
[1642611842262,1.35437124,3126.0,3125.5,0.00043685]
[1642611842462,1.6003,3126.0,3125.5,0.00043685]
[1642611842659,0.00170527,3125.9,3125.5,0.00043685]
[1642611842860,0.00170527,3125.9,3125.1,0.8002]
[1642611843057,1.6003,3126.0,3125.1,0.8002]
[1642611843058,0.80021,3125.5,3125.1,0.8002]
[1642611843259,0.00113685,3125.8,3125.3,0.0125516]
[1642611843462,0.8000092,3128.0,3125.6,1.55005201]
[1642611843463,0.00170527,3125.9,3125.6,1.55005201]
[1642611843706,0.00170527,3125.9,3125.7,1.11769099]
[1642611843910,1.18452196,3126.6,3125.7,1.89210437]
[1642611843911,0.00113685,3125.8,3125.7,1.89210437]
[1642611844110,0.00113685,3125.8,3125.7,0.79995]
[1642611844514,0.00113685,3125.8,3125.6,1.55005201]
[1642611845109,1.42624946,3125.7,3125.4,0.00113685]
[1642611845509,2.22645946,3125.7,3124.7,0.00511581]
[1642611845710,2.22645946,3125.7,3125.1,1.22979792]
[1642611846113,2.22645946,3125.7,3124.7,0.00511581]
[1642611846510,2.22645946,3125.7,3124.6,0.00568423]
[1642611846911,2.22645946,3125.7,3124.7,3.2007329]
[1642611847113,1.31650108,3125.0,3124.7,1.60045]
[1642611847313,1.31650108,3125.0,3124.8,0.00454739]
[1642611847314,0.80038,3124.9,3124.8,0.00454739]
[1642611847607,0.80038,3124.9,3124.6,0.00568423]
[1642611847796,0.79916084,3124.9,3124.6,0.00568423]
[1642611847993,0.79916084,3124.9,3124.4,0.81258125]
[1642611848393,0.79916084,3124.9,3124.5,0.00625266]
[1642611849298,0.79916084,3124.9,3123.9,3.80495175]
[1642611849497,2.40230685,3125.8,3123.9,3.80495175]
[1642611849498,0.80026,3125.4,3123.9,3.80495175]
[1642611849698,2.40230685,3125.8,3124.1,0.07552738]
[1642611850000,0.00113685,3125.8,3124.6,0.01285133]
[1642611850200,0.00113685,3125.8,3124.8,0.80003]
[1642611850398,0.00113685,3125.8,3125.0,1.40246191]
[1642611850597,0.00113685,3125.8,3124.9,0.00397896]
[1642611850598,0.80016,3125.7,3124.9,0.00397896]
[1642611850796,0.80016,3125.7,3125.1,0.00284212]
[1642611850997,0.80016,3125.7,3124.9,0.00397896]
[1642611851513,0.80016,3125.7,3124.7,0.00511581]
[1642611851514,1.52024898,3124.8,3124.7,0.00511581]
[1642611851709,2.32068898,3124.8,3124.7,0.00511581]
[1642611852307,2.32068898,3124.8,3124.2,0.00795793]
[1642611852507,2.32068898,3124.8,3124.2,1.60870793]
[1642611852708,2.40225685,3125.8,3124.9,2.83526428]
[1642611852910,0.00113685,3125.8,3124.9,2.83526428]
[1642611853111,0.75029,3125.6,3125.0,2.9856409]
[1642611853311,0.00113685,3125.8,3125.2,0.01271695]
[1642611853710,0.00113685,3125.8,3125.3,0.00170527]
[1642611853912,0.00113685,3125.8,3125.4,1.24929574]
[1642611854115,0.00113685,3125.8,3125.4,4.44923314]
[1642611854714,0.00113685,3125.8,3125.4,2.84927574]
[1642611855759,0.80125685,3125.8,3125.4,2.84927574]
[1642611856161,0.80125685,3125.8,3125.4,1.24929574]
[1642611858164,0.75125685,3125.8,3125.4,1.24929574]
[1642611858366,1.27664579,3127.1,3125.6,0.8000594]
[1642611858564,1.27664579,3127.1,3125.5,0.00170527]
[1642611858565,0.007,3127.9,3125.7,3.07082467]
[1642611858812,0.00227369,3126.2,3125.8,2.58907343]
[1642611859014,0.007,3127.9,3125.9,5.8]
[1642611859211,0.007,3127.9,3126.1,0.0125317]
[1642611859417,0.00284212,3126.7,3126.6,0.79979]
[1642611859815,0.00284212,3126.7,3126.5,0.79981]
[1642611860213,0.0022737,3126.6,3126.5,0.79981]
[1642611860714,0.0022737,3126.6,3126.3,1.11067625]
[1642611860715,0.0022737,3126.6,3126.3,4.30988685]
[1642611861114,1.2348876,3127.0,3126.0,0.00113684]
[1642611861115,0.00170527,3126.5,3126.0,0.00113684]
[1642611861416,1.2348876,3127.0,3126.0,0.00113684]
[1642611861417,0.00113685,3126.4,3126.0,0.00113684]
[1642611861814,1.60007,3126.5,3125.6,0.00341054]
[1642611862019,0.8002,3126.2,3125.6,0.00341054]
[1642611862215,1.2283368,3125.8,3125.6,0.00341054]
[1642611862961,1.2283368,3125.8,3124.9,2.83526428]
[1642611862962,0.80024,3125.7,3125.0,0.00682108]
[1642611863359,1.39617977,3125.3,3125.0,0.00682108]
[1642611863959,1.1319018,3125.8,3125.0,0.00682108]
[1642611863960,0.80031,3125.2,3125.0,0.00682108]
[1642611865060,1.1058204,3125.1,3125.0,0.00682108]
[1642611865863,0.80031,3125.2,3125.0,0.00682108]
[1642611867015,0.8002,3125.5,3125.0,2.15690336]
[1642611867218,1.60021,3126.2,3125.1,0.08007434]
[1642611867414,1.60021,3126.2,3125.1,0.01911014]
[1642611867612,1.60021,3126.2,3125.2,0.00568423]
[1642611867813,1.60021,3126.2,3125.3,0.01248681]
[1642611868012,1.60021,3126.2,3125.5,1.26797776]
[1642611868013,2.79151197,3126.2,3125.5,1.26797776]
[1642611868213,0.80008,3126.0,3125.5,0.8001]
[1642611868414,0.80008,3126.0,3125.6,0.00341054]
[1642611869418,0.80008,3126.0,3125.2,0.00568423]
[1642611869617,0.80008,3126.0,3125.5,0.00397896]